bitfinex/quotes_SOLUSD_20250106
["timestamp","ask_amount","ask_price","bid_price","bid_amount"]
[1736171542768,13.86806079,218.65,218.58,13.86806079]
[1736171542951,13.86806079,218.66,218.6,13.86806079]
[1736171543376,13.86806079,218.66,218.59,13.99355079]
[1736171543873,15.42226079,218.67,218.6,14.55400779]
[1736171544071,13.86806079,218.68,218.62,13.86806079]
[1736171544383,13.86806079,218.69,218.62,15.94806079]
[1736171544746,13.86806079,218.7,218.62,2.08]
[1736171544953,1.5573,218.77,218.69,13.86806079]
[1736171545258,13.86806079,218.76,218.69,15.94806079]
[1736171545454,15.42536079,218.77,218.71,13.86806079]
[1736171545776,1.5573,218.77,218.71,13.86806079]
[1736171545972,13.86806079,218.78,218.69,2.76566144]
[1736171545973,13.86806079,218.79,218.73,13.86806079]
[1736171546171,13.86806079,218.8,218.73,13.86806079]
[1736171546759,13.86806079,218.75,218.69,13.86806079]
[1736171547073,13.86806079,218.77,218.7,13.86806079]
[1736171547655,13.86806079,218.78,218.71,13.86806079]
[1736171548053,13.86806079,218.79,218.72,13.86806079]
[1736171548677,13.86806079,218.8,218.73,13.86806079]
[1736171549054,13.86806079,218.81,218.74,13.86806079]
[1736171549259,13.86806079,218.82,218.76,13.86806079]
[1736171549657,13.86806079,218.79,218.74,2.08]
[1736171550076,13.86806079,218.78,218.74,2.08]
[1736171550381,13.86806079,218.76,218.71,2.08]
[1736171550960,11.4262,218.8,218.71,15.94806079]
[1736171550961,13.86806079,218.77,218.71,15.94806079]
[1736171551272,13.86806079,218.76,218.71,2.08]
[1736171551455,25.29426079,218.8,218.73,13.86806079]
[1736171551781,13.86806079,218.8,218.74,13.86806079]
[1736171552104,13.86806079,218.82,218.75,13.86806079]
[1736171552582,13.86806079,218.79,218.73,13.86806079]
[1736171552786,13.86806079,218.78,218.75,20.0]
[1736171552988,13.86806079,218.79,218.75,20.0]
[1736171553173,13.86806079,218.8,218.75,20.0]
[1736171553680,13.86806079,218.81,218.74,15.94806079]
[1736171553884,13.86806079,218.82,218.75,13.86806079]
[1736171554072,13.86806079,218.78,218.74,2.08]
[1736171554280,13.86806079,218.76,218.7,15.94806079]
[1736171554572,13.86806079,218.76,218.7,2.08]
[1736171554766,13.86806079,218.77,218.7,15.94806079]
[1736171554961,13.86806079,218.78,218.72,13.86806079]
[1736171555171,11.4234,218.85,218.73,13.86806079]
[1736171555172,13.86806079,218.8,218.73,13.86806079]
[1736171555480,13.86806079,218.81,218.74,13.86806079]
[1736171555659,13.86806079,218.82,218.75,13.86806079]
[1736171555859,13.86806079,218.78,218.72,13.86806079]
[1736171556063,13.86806079,218.76,218.72,2.08]
[1736171556864,13.86806079,218.77,218.72,2.08]
[1736171557066,13.86806079,218.78,218.72,2.08]
[1736171557297,13.86806079,218.79,218.72,15.94806079]
[1736171557587,13.86806079,218.81,218.74,13.86806079]
[1736171558465,13.86806079,218.77,218.72,2.08]
[1736171558987,13.86806079,218.74,218.68,15.94806079]
[1736171559170,13.86806079,218.74,218.68,2.08]
[1736171559485,13.86806079,218.75,218.69,13.86806079]
[1736171559678,13.86806079,218.75,218.68,13.86806079]
[1736171559899,13.86806079,218.72,218.66,13.86806079]
[1736171560108,13.86806079,218.72,218.65,13.86806079]
[1736171560402,13.86806079,218.71,218.65,2.08]
[1736171560787,13.86806079,218.72,218.65,15.94806079]
[1736171561484,13.86806079,218.74,218.67,13.86806079]
[1736171561679,13.86806079,218.74,218.67,33.86806079]
[1736171561884,13.86806079,218.75,218.68,13.86806079]
[1736171562079,13.86806079,218.72,218.67,20.0]
[1736171562509,11.4275,218.77,218.64,20.07826079]
[1736171562510,13.86806079,218.71,218.64,20.07826079]
[1736171562685,13.86806079,218.7,218.65,2.08]
[1736171562885,13.86806079,218.7,218.63,15.94806079]
[1736171565015,13.86806079,218.64,218.5,6.4277]
[1736171565309,13.86806079,218.6,218.52,13.86806079]
[1736171565690,13.86806079,218.61,218.54,13.86806079]
[1736171565892,13.86806079,218.62,218.54,13.86806079]
[1736171566711,13.86806079,218.61,218.54,13.86806079]
[1736171567122,13.86806079,218.61,218.5,7.11392228]
[1736171567411,13.86806079,218.68,218.52,13.86806079]
[1736171567412,13.86806079,218.6,218.52,13.86806079]
[1736171567615,13.86806079,218.58,218.54,20.0]
[1736171568009,13.86806079,218.59,218.54,20.0]
[1736171568219,13.86806079,218.61,218.54,13.86806079]
[1736171568394,13.86806079,218.6,218.53,33.86806079]
[1736171568594,13.86806079,218.6,218.53,20.0]
[1736171569010,13.86806079,218.59,218.53,20.0]
[1736171569314,13.86806079,218.58,218.54,20.0]
[1736171569525,13.86806079,218.59,218.54,20.0]
[1736171570337,11.4353,218.62,218.54,13.86806079]
[1736171570625,13.86806079,218.62,218.54,13.86806079]
[1736171570829,13.86806079,218.61,218.54,13.86806079]
[1736171571341,13.86806079,218.6,218.53,33.86806079]
[1736171571912,13.86806079,218.61,218.54,13.86806079]
[1736171572212,13.86806079,218.6,218.53,33.86806079]
[1736171572601,13.86806079,218.68,218.53,20.0]
[1736171572602,13.86806079,218.59,218.53,20.0]
[1736171573190,13.86806079,218.6,218.53,33.86806079]
[1736171573798,13.86806079,218.6,218.53,20.0]
[1736171574020,13.86806079,218.62,218.55,13.86806079]
[1736171574317,13.86806079,218.64,218.57,13.86806079]
[1736171574513,11.4332,218.66,218.6,13.86806079]
[1736171574514,13.86806079,218.66,218.6,13.86806079]
[1736171574720,15.51776079,218.69,218.62,13.86806079]
[1736171574934,13.86806079,218.7,218.63,13.86806079]
[1736171575135,13.86806079,218.72,218.65,13.86806079]
[1736171575337,13.86806079,218.73,218.66,13.86806079]
[1736171575925,13.86806079,218.75,218.68,13.86806079]
[1736171576237,13.86806079,218.77,218.7,13.86806079]
[1736171576424,13.86806079,218.75,218.68,13.86806079]
[1736171576625,13.86806079,218.74,218.67,15.96806079]
[1736171577322,13.86806079,218.75,218.68,13.86806079]
[1736171577530,13.86806079,218.76,218.69,13.86806079]
[1736171577732,13.86806079,218.73,218.67,15.96806079]
[1736171577928,25.29446079,218.79,218.68,20.0]
[1736171577929,13.86806079,218.72,218.68,20.0]
[1736171578151,13.86806079,218.7,218.67,2.1]
[1736171578457,13.86806079,218.68,218.62,13.86806079]
[1736171578915,13.86806079,218.7,218.63,13.86806079]
[1736171579222,13.86806079,218.71,218.64,13.86806079]
[1736171579623,13.86806079,218.73,218.67,13.86806079]
[1736171579829,13.86806079,218.74,218.67,13.86806079]
[1736171580032,13.86806079,218.71,218.64,13.86806079]
[1736171580223,13.86806079,218.65,218.63,20.0]
[1736171580542,13.86806079,218.69,218.63,20.0]
[1736171580712,5.0,218.76,218.6,6.4995]
[1736171580918,13.86806079,218.65,218.6,6.4995]
[1736171581527,13.86806079,218.66,218.6,6.4995]
[1736171582442,13.86806079,218.65,218.58,13.86806079]
[1736171582631,13.86806079,218.63,218.56,13.86806079]
[1736171582835,13.86806079,218.62,218.55,20.24296079]
[1736171583139,13.86806079,218.62,218.58,20.0]
[1736171584127,13.86806079,218.6,218.54,2.1]
[1736171584335,13.86806079,218.59,218.54,2.1]
[1736171584936,23.776884,218.64,218.54,2.1]
[1736171584937,13.86806079,218.58,218.54,2.1]
[1736171585131,13.86806079,218.57,218.54,2.1]
[1736171585330,13.86806079,218.58,218.54,2.1]
[1736171585534,13.86806079,218.59,218.54,2.1]
[1736171585739,13.86806079,218.61,218.54,13.86806079]
[1736171586465,13.86806079,218.62,218.55,13.86806079]
[1736171588027,13.86806079,218.67,218.59,13.86806079]
[1736171588329,13.86806079,218.65,218.58,13.86806079]
[1736171588731,13.86806079,218.67,218.59,13.86806079]
[1736171588934,13.86806079,218.67,218.6,13.86806079]
[1736171589123,13.86806079,218.68,218.61,13.86806079]
[1736171589336,13.86806079,218.69,218.62,13.86806079]
[1736171589647,13.86806079,218.7,218.63,33.86806079]
[1736171589855,13.86806079,218.71,218.64,13.86806079]
[1736171591057,13.86806079,218.7,218.63,33.86806079]
[1736171591356,13.86806079,218.69,218.63,20.0]
[1736171591572,33.0849,218.74,218.63,20.0]
[1736171591774,13.86806079,218.68,218.63,20.0]
[1736171592543,13.86806079,218.68,218.61,13.86806079]
[1736171592938,13.86806079,218.66,218.6,8.5228]
[1736171594264,13.86806079,218.66,218.6,22.39086079]
[1736171595062,13.86806079,218.66,218.6,8.5228]
[1736171595236,13.86806079,218.65,218.6,6.4228]
[1736171595536,13.86806079,218.63,218.59,20.0]
[1736171596350,13.86806079,218.64,218.58,20.0]
[1736171599250,13.86806079,218.65,218.58,20.0]
[1736171599850,13.86806079,218.65,218.58,33.86806079]
[1736171600367,13.86806079,218.64,218.58,20.0]
[1736171603760,13.86806079,218.65,218.58,20.0]
[1736171606591,13.86806079,218.64,218.59,20.0]
[1736171607160,11.4323,218.68,218.59,20.0]
[1736171607376,13.86806079,218.63,218.59,20.0]
[1736171608893,13.86806079,218.64,218.58,20.0]
[1736171609189,13.86806079,218.65,218.58,33.86806079]
[1736171610094,13.86806079,218.65,218.58,20.0]
[1736171610294,13.86806079,218.64,218.59,20.0]
[1736171613110,13.86806079,218.63,218.59,20.0]
[1736171614309,13.86806079,218.68,218.6,13.86806079]
[1736171614527,13.86806079,218.67,218.6,13.86806079]
[1736171616483,13.86806079,218.69,218.62,13.86806079]
[1736171617090,11.4305,218.72,218.61,13.86806079]
[1736171617091,13.86806079,218.68,218.61,13.86806079]
[1736171617802,13.86806079,218.68,218.6,13.86806079]
[1736171617999,13.86806079,218.66,218.59,13.86806079]
[1736171618203,13.86806079,218.65,218.58,33.86806079]
[1736171618584,13.86806079,218.65,218.6,20.0]
[1736171618784,13.86806079,218.64,218.57,13.86806079]
[1736171622816,13.86806079,218.63,218.59,20.0]
[1736171624102,13.86806079,218.64,218.58,20.0]
[1736171625113,8.84697932,218.59,218.52,0.68609754]
[1736171625295,8.84697932,218.56,218.5,2.1]
[1736171625489,1.5215,218.64,218.52,20.0]
[1736171625697,8.84697932,218.57,218.54,20.0]
[1736171626405,8.84697932,218.58,218.52,28.84697932]
[1736171626607,8.84697932,218.59,218.52,28.84697932]
[1736171627007,13.82694156,218.59,218.53,13.82694156]
[1736171629722,13.82694156,218.6,218.53,13.82694156]
[1736171631830,13.82694156,218.59,218.53,13.82694156]
[1736171632801,13.82694156,218.54,218.44,18.0115]
[1736171633010,13.82694156,218.53,218.46,13.82694156]
[1736171634118,13.82694156,218.52,218.45,15.90694156]
[1736171634298,13.82694156,218.49,218.42,13.82694156]
[1736171635524,12.976,218.55,218.42,13.82694156]
[1736171635715,13.82694156,218.51,218.44,13.82694156]
[1736171637429,13.82694156,218.5,218.43,33.82694156]
[1736171637816,13.82694156,218.49,218.43,33.82694156]
[1736171638228,13.82694156,218.5,218.43,33.82694156]
[1736171638428,11.4374,218.59,218.48,13.82694156]
[1736171638625,13.82694156,218.58,218.51,13.82694156]
[1736171638813,13.82694156,218.57,218.5,13.82694156]
[1736171639012,1.6458,218.6,218.5,13.82694156]
[1736171639013,13.82694156,218.56,218.5,13.82694156]
[1736171639213,13.82694156,218.56,218.49,13.82694156]
[1736171640214,13.82694156,218.55,218.48,13.82694156]
[1736171640631,13.82694156,218.56,218.49,13.82694156]
[1736171643031,13.82694156,218.56,218.47,22.08]
[1736171643032,13.82694156,218.55,218.48,13.82694156]
[1736171643638,13.82694156,218.57,218.5,33.82694156]
[1736171643808,13.82694156,218.58,218.52,13.82694156]
[1736171644517,13.82694156,218.58,218.51,13.82694156]
[1736171645824,1.6458,218.6,218.51,13.82694156]
[1736171646222,13.82694156,218.58,218.51,13.82694156]
[1736171647134,13.82694156,218.56,218.52,20.0]
[1736171647631,13.82694156,218.57,218.52,20.0]
[1736171648134,13.82694156,218.58,218.51,13.82694156]
[1736171648315,13.82694156,218.61,218.54,13.82694156]
[1736171648730,13.82694156,218.6,218.53,13.82694156]
[1736171648934,20.00424156,218.68,218.51,23.902374]
[1736171649241,1.5452,218.67,218.57,8.84736474]
[1736171649417,8.84736474,218.63,218.56,8.84736474]
[1736171650430,1.5452,218.67,218.57,28.84736474]
[1736171650737,10.39256474,218.67,218.6,28.84736474]
[1736171650926,10.39256474,218.67,218.57,6.5411]
[1736171650927,1.5452,218.67,218.58,8.84736474]
[1736171651126,13.82006854,218.64,218.57,13.82006854]
[1736171651428,13.82006854,218.65,218.58,13.82006854]
[1736171651624,1.5452,218.67,218.58,13.82006854]
[1736171651826,13.82006854,218.65,218.58,13.82006854]
[1736171652036,21.5452,218.67,218.54,0.68612421]
[1736171652243,13.82006854,218.59,218.53,13.82006854]
[1736171652816,13.82006854,218.6,218.53,13.82006854]
[1736171653009,13.82006854,218.61,218.54,13.82006854]
[1736171653211,13.82006854,218.61,218.55,33.82006854]
[1736171653435,13.82006854,218.61,218.55,20.0]
[1736171654332,13.82006854,218.62,218.58,20.0]
[1736171655134,1.5452,218.67,218.58,33.82006854]
[1736171655437,13.82006854,218.61,218.52,6.5411]
[1736171655632,13.82006854,218.59,218.52,6.5411]
[1736171655828,13.82006854,218.59,218.55,20.0]
[1736171656215,13.82006854,218.59,218.52,20.36116854]
[1736171656828,35.210084,218.66,218.53,13.82006854]
[1736171657129,13.82006854,218.6,218.53,13.82006854]
[1736171657331,13.82006854,218.6,218.56,20.0]
[1736171657534,13.82006854,218.63,218.55,13.82006854]
[1736171658023,13.82006854,218.63,218.56,13.82006854]
[1736171658230,13.82006854,218.63,218.56,33.82006854]
[1736171658432,13.82006854,218.61,218.57,20.0]
[1736171658630,13.82006854,218.6,218.57,20.0]
[1736171659036,13.82006854,218.58,218.5,0.68622091]
[1736171659233,13.82006854,218.51,218.43,6.2203]
[1736171659436,13.82006854,218.51,218.44,13.82006854]
[1736171659641,13.82006854,218.52,218.48,20.0]
[1736171659833,13.82006854,218.53,218.49,20.0]
[1736171660236,1.5772,218.57,218.49,20.0]
[1736171660237,13.82006854,218.56,218.49,33.82006854]
[1736171660436,13.82006854,218.55,218.48,13.82006854]
[1736171661443,1.5772,218.57,218.49,13.82006854]
[1736171661652,13.82006854,218.56,218.49,13.82006854]
[1736171662032,13.82006854,218.55,218.48,13.82006854]
[1736171662548,13.82006854,218.56,218.49,13.82006854]
[1736171663265,15.39726854,218.57,218.5,13.82006854]
[1736171663472,13.82006854,218.59,218.52,13.82006854]
[1736171663646,13.82006854,218.61,218.54,13.82006854]
[1736171664046,13.82006854,218.6,218.53,13.82006854]
[1736171664462,13.82006854,218.59,218.52,13.82006854]
[1736171665386,13.82006854,218.59,218.54,20.0]
[1736171665585,1.5113,218.62,218.54,20.0]
[1736171665756,13.82006854,218.59,218.54,20.0]
[1736171666592,13.82006854,218.59,218.52,13.82006854]
[1736171667974,13.82006854,218.59,218.51,35.92006854]
[1736171670176,13.82006854,218.59,218.52,13.82006854]
[1736171671573,13.82006854,218.59,218.51,35.92006854]
[1736171672270,13.82006854,218.59,218.52,13.82006854]
[1736171672447,13.82006854,218.6,218.53,13.82006854]
[1736171674971,8.84927218,218.59,218.52,28.84927218]
[1736171675972,8.84927218,218.58,218.52,20.0]
[1736171676156,8.84927218,218.58,218.53,20.0]
[1736171676973,8.84927218,218.57,218.51,2.1]
[1736171677274,8.84927218,218.55,218.51,2.1]
[1736171678880,8.84927218,218.55,218.5,20.0]
[1736171679176,8.84927218,218.55,218.49,20.0]
[1736171679677,8.84927218,218.57,218.49,28.84927218]
[1736171679849,8.84927218,218.58,218.51,20.0]
[1736171682976,8.84927218,218.58,218.53,20.0]
[1736171683887,8.84927218,218.56,218.52,20.0]
[1736171684755,8.84927218,218.56,218.51,20.0]
[1736171687382,8.84927218,218.58,218.51,20.0]
[1736171689183,23.776884,218.61,218.51,20.0]
[1736171689395,8.84927218,218.59,218.51,20.0]
[1736171689770,1.5113,218.62,218.52,8.84927218]
[1736171689973,8.84927218,218.6,218.52,8.84927218]
[1736171691272,1.5113,218.62,218.52,8.84927218]
[1736171691479,8.84927218,218.6,218.52,8.84927218]
[1736171691701,1.5113,218.62,218.55,8.84927218]
[1736171691907,1.5113,218.62,218.57,8.84927218]
[1736171692189,1.6315,218.67,218.59,8.84927218]
[1736171692487,8.84927218,218.65,218.58,8.84927218]
[1736171692899,8.84927218,218.62,218.58,20.0]
[1736171693074,8.84927218,218.63,218.58,20.0]
[1736171693599,8.84927218,218.63,218.56,8.84927218]
[1736171695370,8.84927218,218.6,218.54,20.0]
[1736171695699,8.84927218,218.59,218.55,20.0]
[1736171695873,8.84927218,218.58,218.55,20.0]
[1736171696206,8.84927218,218.56,218.52,2.08]
[1736171696403,8.84927218,218.56,218.52,22.08]
[1736171696572,8.84927218,218.56,218.52,2.08]
[1736171696889,8.84927218,218.56,218.52,22.08]
[1736171699282,8.84927218,218.56,218.52,2.08]
[1736171699684,8.84927218,218.57,218.53,20.0]
[1736171701501,8.84927218,218.58,218.53,20.0]
[1736171701697,8.84927218,218.58,218.51,8.84927218]
[1736171701698,23.776884,218.62,218.51,8.84927218]
[1736171701887,8.84927218,218.58,218.51,8.84927218]
[1736171704677,1.80740766,218.66,218.52,8.84927218]
[1736171704875,8.84927218,218.63,218.55,8.84927218]
[1736171705105,8.84927218,218.63,218.54,20.0]
[1736171705399,8.84927218,218.62,218.55,8.84927218]
[1736171708094,8.84927218,218.62,218.58,20.0]
[1736171708302,7.16565242,218.72,218.64,20.0]
[1736171708495,7.16565242,218.72,218.65,10.92927218]
[1736171708693,8.84927218,218.72,218.65,10.92927218]
[1736171710900,8.84927218,218.71,218.65,2.08]
[1736171712383,8.84927218,218.71,218.65,10.92927218]
[1736171712904,11.4276,218.77,218.68,8.84927218]
[1736171713104,8.84927218,218.75,218.68,8.84927218]
[1736171713410,8.84927218,218.74,218.68,8.84927218]
[1736171713579,8.84927218,218.74,218.67,8.84927218]
[1736171714218,8.84927218,218.74,218.68,8.84927218]
[1736171714510,1.5048,218.79,218.69,8.84927218]
[1736171714694,8.84927218,218.76,218.69,8.84927218]
[1736171715717,8.84927218,218.75,218.68,8.84927218]
[1736171716212,8.84927218,218.72,218.65,312.0]
[1736171716415,8.84927218,218.7,218.63,8.84927218]
[1736171716603,8.84927218,218.69,218.66,2.08]
[1736171716808,8.84927218,218.7,218.66,2.08]
[1736171718715,8.84927218,218.69,218.66,2.08]
[1736171719414,8.84927218,218.7,218.66,2.08]
[1736171720511,8.84927218,218.7,218.63,8.84927218]
[1736171720821,8.84927218,218.7,218.64,2.08]
[1736171721503,8.84927218,218.7,218.63,8.84927218]
[1736171721821,8.84927218,218.7,218.64,2.08]
[1736171722415,23.776884,218.76,218.64,2.08]
[1736171722416,8.84927218,218.69,218.64,2.08]
[1736171722711,8.84927218,218.65,218.59,18.302478]
[1736171723014,8.84927218,218.62,218.59,2.08]
[1736171724791,8.84927218,218.63,218.59,2.08]
[1736171725821,1.82838951,218.71,218.53,6.2522]
[1736171725822,8.84927218,218.6,218.53,6.2522]
[1736171726114,8.84927218,218.59,218.56,20.0]
[1736171726816,8.84927218,218.6,218.56,20.0]
[1736171727017,8.84927218,218.61,218.56,20.0]
[1736171728003,8.84927218,218.62,218.56,20.0]
[1736171728215,8.84927218,218.62,218.56,28.84927218]
[1736171728618,8.84927218,218.62,218.56,20.0]
[1736171729196,8.84927218,218.61,218.56,20.0]
[1736171731499,8.84927218,218.62,218.56,20.0]
[1736171731925,23.776884,218.67,218.56,28.84927218]
[1736171732100,8.84927218,218.63,218.56,28.84927218]
[1736171733121,8.84927218,218.62,218.56,20.0]
[1736171734526,8.84927218,218.63,218.56,28.84927218]
[1736171734727,8.84927218,218.62,218.56,20.0]
[1736171735502,8.84927218,218.62,218.56,22.08]
[1736171736328,8.84927218,218.63,218.56,30.92927218]
[1736171736626,1.5283,218.69,218.57,8.84927218]
[1736171736811,1.5283,218.69,218.61,8.84927218]
[1736171736812,8.84927218,218.68,218.61,8.84927218]
[1736171737015,1.5283,218.69,218.63,8.84927218]
[1736171737328,10.37757218,218.69,218.62,8.84927218]
[1736171738628,8.84927218,218.69,218.62,8.84927218]
[1736171738808,8.84927218,218.7,218.63,8.84927218]
[1736171739002,1.515,218.74,218.63,8.84927218]
[1736171739208,8.84927218,218.7,218.63,8.84927218]
[1736171739426,8.84927218,218.68,218.62,8.84927218]
[1736171739930,8.84927218,218.68,218.64,20.0]
[1736171741934,8.84927218,218.68,218.62,8.84927218]
[1736171742427,8.84927218,218.68,218.62,10.92927218]
[1736171743434,8.84927218,218.68,218.62,2.08]
[1736171744333,1.515,218.74,218.63,8.84927218]
[1736171744511,1.515,218.74,218.66,8.84927218]
[1736171744707,8.84927218,218.72,218.62,13.5153]
[1736171744911,1.515,218.74,218.63,8.84927218]
[1736171744912,8.84927218,218.7,218.63,8.84927218]
[1736171745424,8.84927218,218.69,218.63,8.84927218]
[1736171746018,8.84927218,218.69,218.62,10.92927218]
[1736171747940,8.84927218,218.68,218.62,2.08]
[1736171748332,8.84927218,218.69,218.62,10.92927218]
[1736171748534,23.776884,218.73,218.64,8.84927218]
[1736171748834,8.84927218,218.71,218.64,8.84927218]
[1736171749728,8.84927218,218.7,218.63,8.84927218]
[1736171749937,8.84927218,218.69,218.62,10.92927218]
[1736171750339,8.84927218,218.7,218.62,10.92927218]
[1736171750644,8.84927218,218.7,218.63,8.84927218]
[1736171754149,8.84927218,218.71,218.63,8.84927218]
[1736171757438,8.84927218,218.7,218.63,8.84927218]
[1736171757638,8.84927218,218.71,218.63,8.84927218]
[1736171757941,1.515,218.74,218.65,8.84927218]
[1736171758133,8.84927218,218.73,218.65,8.84927218]
[1736171759653,1.5911,218.81,218.72,8.84927218]
[1736171759959,8.84927218,218.83,218.76,8.84927218]
[1736171762244,8.84927218,218.82,218.75,20.0]
[1736171762452,8.84927218,218.8,218.75,20.0]
[1736171762635,1.6452,218.86,218.77,8.84927218]
[1736171762830,8.84927218,218.84,218.77,8.84927218]
[1736171763443,8.84927218,218.84,218.78,8.84927218]
[1736171763636,23.776884,218.88,218.79,8.84927218]
[1736171763831,8.84927218,218.86,218.79,8.84927218]
[1736171764853,8.84927218,218.86,218.78,20.0]
[1736171765026,8.84927218,218.85,218.78,28.84927218]
[1736171765332,8.84927218,218.84,218.78,28.84927218]
[1736171765554,8.84927218,218.85,218.78,28.84927218]
[1736171765863,8.84927218,218.84,218.78,28.84927218]
[1736171766063,8.84927218,218.83,218.75,312.0]
[1736171766437,8.84927218,218.83,218.77,8.84927218]
[1736171766755,8.84927218,218.84,218.78,8.84927218]
[1736171767255,8.84927218,218.82,218.74,21.5219]
[1736171767442,8.84927218,218.81,218.74,20.0]
[1736171767736,8.84927218,218.81,218.75,8.84927218]
[1736171768727,8.84927218,218.78,218.69,1.5457]
[1736171768927,8.84927218,218.77,218.71,2.08]
[1736171769254,8.84927218,218.83,218.76,8.84927218]
[1736171769430,8.84927218,218.82,218.71,13.5106]
[1736171769631,8.84927218,218.81,218.74,28.84927218]
[1736171771270,8.84927218,218.8,218.73,22.08]
[1736171771556,8.84927218,218.79,218.73,30.92927218]
[1736171773035,8.84927218,218.79,218.73,28.84927218]
[1736171773451,8.84927218,218.81,218.74,8.84927218]
[1736171775063,8.84927218,218.82,218.75,8.84927218]
[1736171775265,8.84927218,218.79,218.73,20.0]
[1736171776751,8.84927218,218.8,218.73,28.84927218]
[1736171777466,8.84927218,218.79,218.73,20.0]
[1736171778484,8.84927218,218.77,218.7,16.99207218]
[1736171779179,8.84927218,218.78,218.71,8.84927218]
[1736171784364,8.84927218,218.78,218.7,8.1428]
[1736171784564,8.84927218,218.78,218.71,8.84927218]
[1736171784764,8.84927218,218.78,218.72,8.84927218]
[1736171786165,8.84927218,218.78,218.71,8.84927218]
[1736171786493,8.84927218,218.77,218.7,16.99207218]
[1736171786680,8.84927218,218.77,218.71,8.84927218]
[1736171790370,8.84927218,218.78,218.71,8.84927218]
[1736171792589,8.84927218,218.77,218.7,14.91207218]
[1736171793970,8.84927218,218.74,218.65,6.0642]
[1736171794181,8.84927218,218.74,218.67,8.84927218]
[1736171794986,8.84927218,218.75,218.67,8.84927218]
[1736171795699,8.84927218,218.75,218.68,8.84927218]
[1736171796886,8.84927218,218.74,218.67,8.84927218]
[1736171797101,8.84927218,218.73,218.66,10.92927218]
[1736171797459,8.84927218,218.74,218.67,8.84927218]
[1736171800391,23.776884,218.76,218.67,8.84927218]
[1736171800576,8.84927218,218.74,218.67,8.84927218]
[1736171802163,8.84927218,218.73,218.66,2.08]
[1736171802372,8.84927218,218.71,218.63,20.0]
[1736171802673,8.84927218,218.75,218.68,8.84927218]
[1736171802871,11.4269,218.79,218.69,8.84927218]
[1736171803090,8.84927218,218.76,218.69,8.84927218]
[1736171803466,8.84927218,218.75,218.63,31.4346]
[1736171803693,8.84927218,218.75,218.68,8.84927218]
[1736171807392,23.776884,218.78,218.69,8.84927218]
[1736171807699,8.84927218,218.76,218.69,8.84927218]
[1736171808011,23.776884,218.78,218.7,8.84927218]
[1736171808302,8.84927218,218.79,218.72,8.84927218]
[1736171810003,8.84927218,218.78,218.71,28.84927218]
[1736171813410,8.84927218,218.8,218.73,8.84927218]
[1736171813627,8.84927218,218.81,218.74,8.84927218]
[1736171813983,8.84927218,218.8,218.73,8.84927218]
[1736171814712,8.84927218,218.81,218.74,8.84927218]
[1736171815910,12.9634,218.85,218.74,8.84927218]
[1736171815911,1.5401,218.85,218.74,8.84927218]
[1736171816110,8.84927218,218.81,218.75,8.84927218]
[1736171817441,8.84927218,218.82,218.75,8.84927218]
[1736171818136,8.84927218,218.83,218.76,8.84927218]
[1736171818742,8.84927218,218.84,218.77,8.84927218]
[1736171820741,8.84927218,218.84,218.77,10.92927218]
[1736171823139,8.84927218,218.84,218.78,8.84927218]
[1736171823525,8.84927218,218.84,218.79,8.84927218]
[1736171823845,1.6576,218.9,218.79,8.84927218]
[1736171824038,8.84927218,218.85,218.79,8.84927218]
[1736171824241,1.6576,218.9,218.79,8.84927218]
[1736171824431,8.84927218,218.86,218.8,8.84927218]
[1736171824823,8.84927218,218.85,218.79,28.84927218]
[1736171827020,8.84927218,218.84,218.79,20.0]
[1736171828142,8.84927218,218.82,218.77,2.08]
[1736171828347,8.84927218,218.82,218.77,10.92927218]
[1736171830026,8.84927218,218.81,218.76,6.5055]
[1736171834243,8.84927218,218.77,218.7,6.6616]
[1736171834452,1.5192,218.82,218.72,8.84927218]
[1736171834647,8.84927218,218.81,218.75,8.84927218]
[1736171835048,8.84927218,218.82,218.75,8.84927218]
[1736171839057,8.84927218,218.81,218.74,2.08]
[1736171839258,8.84927218,218.8,218.74,2.08]
[1736171839458,8.84927218,218.78,218.72,2.08]
[1736171840032,23.776884,218.84,218.72,2.08]
[1736171840231,23.776884,218.84,218.76,8.84927218]
[1736171840436,8.84927218,218.82,218.75,8.84927218]
[1736171840656,8.84927218,218.82,218.74,30.92927218]
[1736171841861,8.84927218,218.82,218.75,8.84927218]
[1736171842036,8.84927218,218.83,218.75,8.84927218]
[1736171843964,23.776884,218.84,218.76,8.84927218]
[1736171844137,8.84927218,218.84,218.76,8.84927218]
[1736171844863,8.84927218,218.84,218.77,8.84927218]
[1736171845462,8.84927218,218.84,218.76,8.84927218]